Cogmind - Beta 15 @@@ ROGUE MODE // 2025.10.02 @ 20:14:52 Player: pandag Result: Destroyed by D3-YZ3(R) with Subdweller Laser Performance ------------- Evolutions (0) 0 Regions Visited (3) 600 Robots Destroyed (13) 65 Value Destroyed (411) 411 Prototype IDs (0) 0 Alien Tech Used (0) 0 Bonus (0) 0 TOTAL SCORE: 1076 Bonus ------- None Cogmind --------- Core Integrity 0/250 Matter 280/300 Energy 200/200 System Corruption 0% Temperature Cool (6) Movement Rolling (120) Ox1 Location -10/Subcaves Parts ------- > --- POWER (1) -------- Subdweller Power Source > --- PROPULSION (2) --- Light Treads Subdweller Monowheel > --- UTILITY (2) ------ Small Storage Unit Subdweller Optics > --- WEAPON (2) ------- Subdweller Beam Cannon Ripper > --- INVENTORY (8) ---- Light Ion Engine Wheel Signal Interpreter Terrain Scanner Makeshift Power Shielding Hacking Suite Battle Cannon Mining Laser Peak State ------------ > --- POWER ------------ Subdweller Power Source > --- PROPULSION ------- Wheel Subdweller Monowheel > --- UTILITY ---------- Small Storage Unit Makeshift Power Shielding > --- WEAPON ----------- Subdweller Machine Gun Ripper > --- INVENTORY -------- Light Ion Engine Light Treads Light Treads Signal Interpreter Terrain Scanner Hacking Suite Subdweller Beam Cannon Mining Laser [Rating: 17] Favorites ----------- Power Subdweller Power Source Engine Subdweller Power Source Propulsion Wheel Treads Light Treads Wheel Wheel Utility Small Storage Unit Device Sensor Array Storage Small Storage Unit Protection Makeshift Power Shielding Weapon Ripper Energy Gun Small Laser Energy Cannon Subdweller Beam Cannon Ballistic Gun Assault Rifle Special Weapon Mining Laser Slashing Weapon Ripper Build | -11 -10 -10 -10 ------- Run | Yrd Mat Min Sub Slots Evolved . | . . . . Power . | . . . . Propulsion . | . . . . Utility . | . . . . Weapon . | . . . . Parts Attached 30 | 4 8 2 16 Power 8 | 1 . 1 6 Engine 8 | 1 . 1 6 Core . | . . . . Reactor . | . . . . Propulsion 9 | 2 3 . 4 Treads 2 | . 2 . . Leg . | . . . . Wheel 7 | 2 1 . 4 Hover . | . . . . Flight . | . . . . Utility 5 | 1 1 1 2 Device 3 | . 1 1 1 Storage 1 | 1 . . . Processor . | . . . . Hackware . | . . . . Protection 1 | . . . 1 Artifact . | . . . . Weapon 8 | . 4 . 4 Energy Gun 2 | . 1 . 1 Energy Cannon 1 | . . . 1 Ballistic Gun 3 | . 2 . 1 Ballistic Cannon . | . . . . Launcher . | . . . . Special Weapon 1 | . 1 . . Impact Weapon . | . . . . Slashing Weapon 1 | . . . 1 Piercing Weapon . | . . . . Special Melee Weapon . | . . . . Unidentified Prototypes . | . . . . Parts Lost 10 | . . . 10 Power 1 | . . . 1 Propulsion 4 | . . . 4 Utility 1 | . . . 1 Weapon 4 | . . . 4 Highest Loss Streak 4 | . . . 4 To Critical Strikes . | . . . . Average Backups 7 | 3 7 8 7 Power 1 | . 1 1 1 Propulsion 1 | . 2 2 1 Utility 2 | . 2 3 3 Weapon 1 | 2 1 2 1 Tool/Special . | . . . . Unused Backups 6 | . 2 . 4 Power . | . . . . Propulsion 1 | . . . 1 Utility 3 | . 1 . 2 Weapon 2 | . 1 . 1 Tool/Special . | . . . . Average Slot Usage (%) 94 | . 97 100 92 Engine 13 | . 14 14 13 Treads 8 | . 9 20 6 Wheel 18 | . 18 7 20 Device 7 | . 11 14 5 Storage 14 | . 14 14 14 Protection 3 | . . . 5 Energy Gun 6 | . 13 14 2 Energy Cannon 2 | . . . 4 Ballistic Gun 9 | . 12 14 7 Slashing Weapon 7 | . . . 11 Peak Build Rating 17 | 4 8 8 17 Average Rating 11 | 3 7 8 13 On Entrance 5 | . 4 8 8 Naked Turns . | . . . . Heaviest Build 23 | 10 14 14 23 Greatest Support 40 | 20 40 40 40 Greatest Overweight (x) 4 | . . . 4 Average Overweight (x) . | . . . . Largest Inventory Capacity 8 | 8 8 8 8 Average Capacity 7 | 7 8 8 8 Most Carried 8 | 6 8 8 8 Average Carried 7 | 3 7 8 7 Final Capacity 8 | 8 8 8 8 Final Carried 8 | 6 8 8 8 Class Distribution -------------------- 82% | Mutant 17% | Scavenger-Mutant Dominant Class ---------------- Mutant | -10/Materials Mutant | -10/Mines Mutant | -10/Subcaves Resources | -11 -10 -10 -10 ----------- Run | Yrd Mat Min Sub Matter Collected 727 | 240 92 43 352 Remotely . | . . . . Salvage Created 472 | . 173 43 256 Parts 24 | . 4 6 14 Haulers Intercepted . | . . . . Recyclers Shooed . | . . . . Parts Field Recycled . | . . . . Retrieved Matter . | . . . . Parts Self-Destructed . | . . . . Prevented . | . . . . Kills | -11 -10 -10 -10 ------- Run | Yrd Mat Min Sub Combat Hostiles Destroyed 12 | . 3 3 6 Melee 4 | . . . 4 Guns 6 | . 3 3 . AOE 2 | . . . 2 Classes Destroyed 4 | . 2 1 1 Operator 1 | . 1 . . Swarmer 3 | . . 3 . Grunt 3 | . 3 . . Subdweller 6 | . . . 6 Best Kill Streak 2 | . 2 2 2 Combat Bots Only 2 | . 2 2 2 Max Kills in Single Turn 2 | . 1 1 2 Gunslinging . | . . . . Exploded 2 | . . . 2 Melee 1 | . . . 1 Uniques/NPCs Destroyed . | . . . . Combat | -11 -10 -10 -10 -------- Run | Yrd Mat Min Sub Hostile Shots Fired 86 | . 30 24 32 Missed 22 | . 8 5 9 Hits 64 | . 22 19 23 Projectile 64 | . 22 19 23 AOE 3 | . . . 3 Critical Strikes 1 | . . . 1 Damage Taken 1183 | . 269 158 756 Core 255 | . 58 17 180 Absorbed by Shields . | . . . . Redirected to Shielding 12 | . . . 12 Core Remaining (%) 100 | 100 . . . Volleys Fired 48 | . 30 12 6 Largest 2 | . 2 2 1 Hottest 100 | . 100 60 60 Shots Fired 86 | . 56 24 6 Gun 85 | . 55 24 6 Cannon . | . . . . Launcher . | . . . . Special 1 | . 1 . . Kinetic 41 | . 28 12 1 Thermal 40 | . 28 12 . Explosive . | . . . . Electromagnetic 5 | . . . 5 Robot Hit Streak 13 | . 13 9 11 Robot Miss Streak 10 | . 3 10 . Penetration Max . | . . . . Secondary Targets . | . . . . Shots Hit Robots 69 | . 41 10 18 Core Hits 21 | . 11 3 7 Critical Kills . | . . . . Critical Parts Destroyed . | . . . . Critical Strikes . | . . . . Melee Attacks 24 | . . . 24 Impact . | . . . . Slashing 24 | . . . 24 Piercing . | . . . . Sneak Attacks 1 | . . . 1 Combat Hostiles . | . . . . Follow-up Attacks . | . . . . Damage Inflicted 1226 | . 475 120 631 Guns 693 | . 475 120 98 Cannons . | . . . . Explosions 110 | . . . 110 Melee 423 | . . . 423 Ramming . | . . . . Kinetic 314 | . 246 68 . Thermal 391 | . 229 52 110 Explosive . | . . . . Electromagnetic 98 | . . . 98 Impact . | . . . . Slashing 423 | . . . 423 Piercing . | . . . . Highest Corruption . | . . . . Average Corruption . | . . . . Corruption Purged . | . . . . Corruption Blocked . | . . . . Overload Shots . | . . . . Overflow Damage 27 | . . . 27 Projectiles . | . . . . Explosions 27 | . . . 27 Melee . | . . . . Knockbacks . | . . . . Impact . | . . . . Kinetic . | . . . . Secondary . | . . . . Self-Inflicted Damage 43 | . . . 43 Shots 1 | . . . 1 Rammed . | . . . . Targets Rammed . | . . . . Kicked . | . . . . Crushed . | . . . . Highest Temperature 87 | . 87 . 2 Average Temperature 40 | . 41 . 2 Received Heat Transfer 246 | . 153 . 93 Siege Activations . | . . . . Martial Activations . | . . . . Shielding Activations . | . . . . Robots Disrupted . | . . . . Combat Hostiles . | . . . . Robots Corrupted . | . . . . Combat Hostiles . | . . . . Parts Fried . | . . . . Impact Corruptions . | . . . . Robots Melted . | . . . . Combat Hostiles . | . . . . Parts Melted 1 | . 1 . . Heat Transferred 700 | . 525 125 50 Parts Sabotaged . | . . . . Parts Stolen . | . . . . Parts Stripped . | . . . . Power Chain Reactions 1 | . . . 1 Alert | -11 -10 -10 -10 ------- Run | Yrd Mat Min Sub Maximum Alert Level . | . . . . Low Security (%) 100 | 100 100 100 . Level 1 . | . . . . Level 2 . | . . . . Level 3 . | . . . . Level 4 . | . . . . Level 5 . | . . . . High Security . | . . . . Max Security . | . . . . Peak Influence 50 | . 41 50 . Initial 7 | . . 7 . Average 12 | . 9 21 . Influence Increases 236 | . 136 100 . Destroy 0b10 Robot/C 120 | . 60 60 . Destroy 0b10 Robot/NC 5 | . 5 . . Destroy Leader 30 | . 20 10 . Successful Hack 5 | . 5 . . Disable Machine 15 | . 15 . . Destroy Structure 1 | . 1 . . Lose Combat Pursuer 60 | . 30 30 . Influence Decreases 236 | . 116 100 20 Entered New Map 24 | . . 13 11 Time Decay 212 | . 116 87 9 Squads Dispatched 1 | . 1 . . Investigation 1 | . 1 . . Extermination . | . . . . Reinforcement . | . . . . Assault . | . . . . Garrison . | . . . . Intercept . | . . . . Searches Triggered . | . . . . Construction Impeded . | . . . . Haulers Reinforced . | . . . . Active Scanning Responses . | . . . . Cargo Convoy Interrupts . | . . . . Stealth | -11 -10 -10 -10 --------- Run | Yrd Mat Min Sub Distress Signals 2 | . 2 . . Communications Jammed . | . . . . Distress Signals . | . . . . Times Spotted 25 | . 10 5 10 Peak Tracking Total 5 | . 5 3 2 Tactical Retreats 3 | . 1 1 1 Traps | -11 -10 -10 -10 ------- Run | Yrd Mat Min Sub Traps Triggered 4 | . 1 . 3 Indirectly . | . . . . Trap Hack Attempts . | . . . . Triggered . | . . . . Disarmed . | . . . . Reprogrammed . | . . . . Reused . | . . . . Traps Extracted . | . . . . Installed . | . . . . Triggered . | . . . . Machines | -11 -10 -10 -10 ---------- Run | Yrd Mat Min Sub Machines Disabled 1 | . 1 . . Max in Single Turn 1 | . 1 . . Machines Repaired . | . . . . Machines Dismantled . | . . . . Machines Sabotaged . | . . . . Overloaded Fab Kills . | . . . . Hacking | -11 -10 -10 -10 --------- Run | Yrd Mat Min Sub Machines Accessed 1 | . 1 . . Terminals 1 | . 1 . . Fabricators . | . . . . Repair Stations . | . . . . Recycling Units . | . . . . Scanalyzers . | . . . . Garrison Access . | . . . . Total Hacks 1 | . 1 . . Successful 1 | . 1 . . Failed . | . . . . Catastrophic . | . . . . Database Lockouts . | . . . . Manual . | . . . . Terminals 1 | . 1 . . Fabricators . | . . . . Repair Stations . | . . . . Recycling Units . | . . . . Scanalyzers . | . . . . Garrison Access . | . . . . Terminal Hacks 1 | . 1 . . Zone Layout 1 | . 1 . . Fabricator Hacks . | . . . . Repair Station Hacks . | . . . . Recycling Unit Hacks . | . . . . Scanalyzer . | . . . . Garrison Access Hacks . | . . . . Unauthorized Hacks . | . . . . Terminals . | . . . . Fabricators . | . . . . Repair Stations . | . . . . Recycling Units . | . . . . Scanalyzers . | . . . . Garrison Access . | . . . . Data Cores Recovered 1 | . 1 . . Used . | . . . . Hacking Detections . | . . . . Full Trace Events . | . . . . Feedback Events . | . . . . Feedback Blocked . | . . . . Robot Schematics Acquired . | . . . . Robots Built . | . . . . Authchips . | . . . . Time . | . . . . Total Robot Build Rating . | . . . . Part Schematics Acquired . | . . . . Parts Built . | . . . . Authchips . | . . . . Time . | . . . . Total Part Build Rating . | . . . . Parts Repaired . | . . . . Time . | . . . . Parts Recycled . | . . . . Recycled Matter . | . . . . Retrieved Matter . | . . . . Retrieved Components . | . . . . Parts Scanalyzed . | . . . . Part Schematics Acquired . | . . . . Parts Damaged . | . . . . Bothacking | -11 -10 -10 -10 ------------ Run | Yrd Mat Min Sub Used RIF Installer . | . . . . Robots Hacked . | . . . . Non-combat . | . . . . Combat . | . . . . Robot Hacks Applied . | . . . . Relay Couplers Released . | . . . . Fabnet Peak Effective % . | . . . . Robots Rewired . | . . . . Allies Hacked . | . . . . Hacks Repelled . | . . . . Allies | -11 -10 -10 -10 -------- Run | Yrd Mat Min Sub Total Allies . | . . . . Largest Group . | . . . . Highest-Rated Group . | . . . . Highest-Rated Ally . | . . . . Total Orders . | . . . . Ally Attacks . | . . . . Total Damage . | . . . . Kills . | . . . . Allies Corrupted . | . . . . Allies Melted . | . . . . Intel | -11 -10 -10 -10 ------- Run | Yrd Mat Min Sub Active Infowar (turns) 927 | . 316 221 390 Optics 285 | . . . 285 Sensors 473 | . 316 55 102 Terrain 169 | . . 166 3 Robot Analysis Total . | . . . . Derelict Logs Recovered . | . . . . Drone Launches . | . . . . Drone Recoveries . | . . . . Exploration | -11 -10 -10 -10 ------------- Run | Yrd Mat Min Sub Turns Passed 1740 | 51 373 221 1095 Spaces Moved 1366 | 50 229 128 959 Core 9 | 2 . . 7 Treads 165 | . 12 82 71 Legs . | . . . . Wheels 1192 | 48 217 46 881 Hover . | . . . . Flight . | . . . . Fastest Speed 50 | 50 80 80 80 Average Speed 99 | 78 88 131 98 Slowest Speed 250 | 80 160 160 250 Overloaded Moves . | . . . . Propulsion Burnouts . | . . . . Robots Hopped . | . . . . Potential Cave-ins . | . . . . Cave-ins Triggered . | . . . . Exploration Rate (%) 31 | 3 43 26 54 Regions Visited 3 Branch Regions 2 Pre-discovered Areas . | . . . . Known Exits Taken . | . . . . Unknown Exits Taken 3 | 1 1 1 . Scrap Searched 3 | . . . 3 Spaces Dug . | . . . . Terrain Destroyed 8 | . . . 8 Melee . | . . . . Projectile . | . . . . AOE 8 | . . . 8 Terrain Rammed . | . . . . Walls Destroyed . | . . . . Machines Disabled . | . . . . Actions | -11 -10 -10 -10 --------- Run | Yrd Mat Min Sub Total 1611 | 59 336 156 1060 Wait 98 | . 52 12 34 Move 1363 | 49 228 127 959 Hop . | . . . . Pick Up 18 | 6 7 . 5 Fast Attach 15 | 4 1 . 10 Attach 7 | . 3 . 4 Detach 2 | . 1 . 1 Swap 23 | . 11 4 8 Drop 13 | . 3 1 9 Fire 48 | . 30 12 6 Melee 24 | . . . 24 Ram . | . . . . Kick . | . . . . Crush . | . . . . Escape Stasis . | . . . . Rewire . | . . . . Trap . | . . . . Miscellaneous . | . . . . Route ------- -11/Scrapyard -10/Materials (discovered 2 exits: [*Mat] / [*Min]) -10/Mines -10/Subcaves History --------- Turn | Location | Event 6 | -11/Scrapyard | Discovered new exit (range 15) 52 | -11/Scrapyard | Entered Materials 182 | -10/Materials | Discovered new exit (range 12) 215 | -10/Materials | Discovered new exit (range 16) 316 | -10/Materials | Build established: Mutant 425 | -10/Materials | Entered Mines 625 | -10/Mines | Discovered new exit (range 14) 646 | -10/Mines | Entered Subcaves 799 | -10/Subcaves | Disturbed a concealed Subdweller 905 | -10/Subcaves | Core integrity fell below 50% 1396 | -10/Subcaves | Lost 4 parts (1p2n1w) 1420 | -10/Subcaves | Core integrity fell below 20% 1741 | -10/Subcaves | Destroyed by D3-YZ3(R) with Subdweller Laser Last Messages --------------- 01378_ Subatomizers dissect the Broken Sub. Power Source. 01444_ OM-1ED(R) destroyed. 01446_ Acquired 30 matter. 01451_ Acquired 10 matter. 01456_ Acquired Sub. Optics. 01459_ Acquired 10 matter. 01508_ Acquired Battle Cannon. 01516_ Lgt. Treads destroyed. 01523_ 3D-AJO(R) destroyed. 01528_ Acquired Sub. Monowheel. 01530_ Acquired 10 matter. 01532_ Dropped Sub. Power Source. 01534_ Acquired 10 matter. 01539_ Subatomizers dissect the Sub. Optics. 01630_ Dropped Sub. Power Source. 01630_ Acquired Sub. Monowheel. 01634_ Dropped Lgt. Treads. 01634_ Acquired Wheel. 01658_ Dropped Sub. Monowheel. 01659_ Acquired Lgt. Treads. Map ----- +----------------------------------------------------+ | ?????????????????????????????????????????????????? | | ?????????????????????????????????????????????????? | | ?????????????????????????????????????????????????? | | ?????????????????????????????????????????????????? | | ?????????????????????????????????????????????????? | | ?????????????????????????????????????????????????? | | ?????????????????????????????????????????????????? | | ?????????????????????????????????????????????????? | | ?????????????????????????????????????????????????? | | ?????????????????????????????????????????????????? | | ?????????????????????????????????????????????????? | | ???????????????????####???????????##?????????????? | | ??????????????????## ?????????? ?????????????? | | ??????????????????" ?##??????? ??????????????? | | ???????????????????"" ? #????? ???????????????? | | ??????????????????? ? ###?? #???????????????? | | ???????????????????# ? ### #???????????????? | | ???????????????????# ? ###?????????????? | | ????????????##?????# ?# ??????????????? | | ???????????## #???## #?# ???????????????? | | ???????????# ???# ### ?????????????????? | | ???????????# #??# ## ??????????????????? | | ???????????# ??# ## ????????????????????? | | ???????????? ### ##R ?????????????????????? | | ?????????????# ## " #??????????????????????? | | ??????????????# ### @#??????????????????????? | | ???????????????# "## #??????????????????????? | | ????????????????# " ##??????????????????????? | | ???????????????## " ###???????????????????????? | | ??????????###### " ##?????????????????????????? | | ??????????# " " ####???????????????????????? | | ??????????## " ##??????????????????????? | | ???????????# " ##?????????????????????? | | ???????????# #?????????????????????? | | ?????????### ##?????????????????????? | | ?????????# #??????????????????????? | | ?????????# ####### #??????????????????????? | | ?????????## ##?????## #######????????????????? | | ??????????####???????## ## ##???????????????? | | ??????????????######### #???????????????? | | ???????????#### #???????????????? | | ??????????## ##??????????????? | | ??????????# ##?????????????? | | ??????????# #### ## #???##????????? | | ??????????## #??##### ### ### ###??????? | | ???????????## ####???## ##?# #??????? | | ????????????## ##???####??# #??????? | | ?????????????## #?????????# ####??????? | | ??????????????# ##?????????## ##?????????? | | ???????????#### ##???????????#######??????????? | +----------------------------------------------------+ Best States ------------- Heat Dissipation 25 Energy Generation 15 Energy Capacity 250 Matter Stores 300 Matter Capacity 300 Sight Range 21 Robot Scan Range 14 Terrain Scan Range 14 Terrain Scan Density 10 Power Shielding 15 Evasion (%) 44 Recoil Reduction 2 Item Schematics ----------------- None Robot Schematics ------------------ None Fabricated ------------ Nothing Repaired ---------- Nothing Alien Tech Used ----------------- None Achievements -------------- None Challenges ------------ None Game ------ Seed ThunderFieldthrustMembrane Manual? 0 Play Time 00:18:12 Cumulative 71.3 hours Start 2025.10.02 @ 19:58:38 End 2025.10.02 @ 20:14:52 Sessions 1 Manual Loads 0 Difficulty Rogue Special Mode None Game No. 58 Rogue 58 Adventurer 0 Explorer 0 Win Type - Total 1 Types 1/0/0/0/0/0/0/0/0/0 Lore% 28 Gallery% 43 Achievement% 39 Wizard Run 0 Options --------- Layout 0 ASCII 0 Keyboard 0 Movement Mouse Keybinds 0 Fullscreen 1 Font 18/SmallcapsGlow Map View 76x50 Zoom Use 0% Tactical HUD 1 Map Filters NONE Filters NONE Steam 1 RUN: 28ce3813-ccff-474b-be9c-bbdc1708960b